bitfinex/quotes_SOLUSD_20241028
["timestamp","ask_amount","ask_price","bid_price","bid_amount"]
[1730145161821,70.0,176.39,176.3,1.41894662]
[1730145162007,17.36427434,176.34,176.3,1.41894662]
[1730145163026,5.6695,176.38,176.25,17.36427434]
[1730145163027,17.36427434,176.31,176.25,17.36427434]
[1730145163325,17.36427434,176.32,176.26,18.78351006]
[1730145163624,17.36427434,176.31,176.27,1.41923572]
[1730145163828,17.36427434,176.31,176.26,1.41927777]
[1730145164015,23.03627434,176.31,176.26,1.41927777]
[1730145164217,17.36427434,176.3,176.26,1.41927777]
[1730145164417,17.36427434,176.33,176.27,17.36427434]
[1730145164734,20.0,176.33,176.28,18.78348852]
[1730145165027,20.0,176.33,176.28,17.36427434]
[1730145165207,17.36427434,176.34,176.28,17.36427434]
[1730145165930,17.36427434,176.35,176.29,17.36427434]
[1730145166235,17.36427434,176.33,176.28,17.36427434]
[1730145166399,17.36427434,176.33,176.29,1.41912307]
[1730145166605,17.36427434,176.33,176.28,17.36427434]
[1730145166805,17.36427434,176.33,176.27,17.36427434]
[1730145167026,23.03567434,176.33,176.27,17.36427434]
[1730145167613,17.36427434,176.32,176.26,17.36427434]
[1730145167927,17.36427434,176.3,176.27,1.41924195]
[1730145168130,17.36427434,176.3,176.26,1.41924195]
[1730145169337,17.36427434,176.3,176.25,1.41924195]
[1730145169529,23.03647434,176.3,176.25,1.41924195]
[1730145169833,5.6722,176.3,176.26,17.36427434]
[1730145170541,23.03607434,176.31,176.26,17.36427434]
[1730145172430,39.49707434,176.33,176.27,17.36427434]
[1730145172615,17.36427434,176.3,176.21,0.5963821]
[1730145172820,17.36427434,176.31,176.25,17.36427434]
[1730145173019,17.36427434,176.31,176.26,1.41927728]
[1730145173914,23.03637434,176.31,176.25,17.36427434]
[1730145174111,23.03637434,176.31,176.26,1.41935111]
[1730145174328,23.03637434,176.31,176.26,1.41931561]
[1730145174925,23.03637434,176.31,176.26,18.78358995]
[1730145175116,23.03637434,176.31,176.26,17.36427434]
[1730145176527,16.80463913,176.31,176.26,11.13253913]
[1730145178034,5.6721,176.31,176.26,11.13253913]
[1730145179135,16.80463913,176.31,176.26,11.13253913]
[1730145180034,16.80463913,176.31,176.25,11.13253913]
[1730145180916,11.13253913,176.27,176.21,13.14820649]
[1730145181118,11.13253913,176.26,176.21,13.14820649]
[1730145181518,16.80593913,176.26,176.22,1.41947428]
[1730145181731,11.13253913,176.27,176.21,11.72892123]
[1730145181929,16.80563913,176.27,176.21,11.72892123]
[1730145182220,5.6731,176.27,176.22,11.13253913]
[1730145182423,31.13253913,176.3,176.24,11.13253913]
[1730145182625,11.13253913,176.29,176.24,11.13253913]
[1730145182829,11.13253913,176.29,176.23,11.13253913]
[1730145183124,11.13253913,176.29,176.23,12.55201341]
[1730145183332,16.80523913,176.29,176.24,1.41947428]
[1730145183529,11.13253913,176.28,176.23,11.13253913]
[1730145184029,11.13253913,176.26,176.21,0.5963821]
[1730145184920,11.13253913,176.24,176.21,0.5963821]
[1730145185118,70.0,176.28,176.21,0.5963821]
[1730145185119,16.80713913,176.23,176.21,0.5963821]
[1730145185740,11.13253913,176.22,176.21,0.5963821]
[1730145186420,5.6746,176.23,176.21,0.5963821]
[1730145186621,17.41189772,176.22,176.21,0.5963821]
[1730145186930,17.41189772,176.27,176.21,18.00827982]
[1730145187242,5.6734,176.26,176.21,18.00827982]
[1730145187945,23.08529772,176.26,176.21,0.5963821]
[1730145188324,23.08529772,176.26,176.21,2.01611663]
[1730145188723,23.08529772,176.26,176.21,0.5963821]
[1730145189947,17.41189772,176.25,176.21,0.5963821]
[1730145190652,23.08579772,176.25,176.21,0.5963821]
[1730145191423,17.41189772,176.24,176.21,0.5963821]
[1730145192531,23.08599772,176.24,176.21,0.5963821]
[1730145192941,5.6741,176.24,176.21,0.5963821]
[1730145194351,23.776884,176.26,176.21,19.42814351]
[1730145194542,23.776884,176.26,176.22,17.41189772]
[1730145194543,29.450484,176.26,176.22,17.41189772]
[1730145195332,32.51309772,176.29,176.23,17.41189772]
[1730145195523,5.6727,176.28,176.24,17.41189772]
[1730145196150,5.6727,176.28,176.23,17.41189772]
[1730145196530,23.08459772,176.28,176.22,17.41189772]
[1730145197249,5.6727,176.28,176.23,17.41189772]
[1730145198042,5.6725,176.29,176.25,17.41189772]
[1730145198757,39.41979772,176.33,176.27,17.41189772]
[1730145198946,22.0078,176.33,176.29,17.41189772]
[1730145200544,22.0078,176.33,176.28,17.41189772]
[1730145201140,20.0,176.35,176.31,17.41189772]
[1730145201342,5.6702,176.36,176.31,17.41189772]
[1730145202545,41.18878172,176.34,176.29,17.41189772]
[1730145203332,5.6711,176.33,176.29,17.41189772]
[1730145203748,17.41189772,176.31,176.22,22.2984]
[1730145204063,17.41189772,176.32,176.26,17.41189772]
[1730145204751,17.41189772,176.31,176.25,17.41189772]
[1730145204951,5.6721,176.3,176.26,1.41952231]
[1730145205463,41.18878172,176.29,176.26,1.41952231]
[1730145205763,41.18878172,176.29,176.24,1.41952231]
[1730145205965,41.18878172,176.29,176.25,1.41959366]
[1730145206337,41.18878172,176.29,176.24,1.41959366]
[1730145206550,17.41189772,176.28,176.24,1.41959366]
[1730145206757,23.776884,176.29,176.23,1.41959366]
[1730145206758,17.41189772,176.27,176.23,1.41959366]
[1730145207056,23.08529772,176.26,176.24,1.41959366]
[1730145207261,23.08529772,176.26,176.22,1.41959366]
[1730145207448,23.08529772,176.26,176.21,0.5963821]
[1730145207449,23.08529772,176.26,176.23,1.41971195]
[1730145207953,23.08529772,176.26,176.24,1.41971195]
[1730145208148,23.08529772,176.26,176.21,0.5963821]
[1730145208352,17.41189772,176.27,176.22,1.41971002]
[1730145208550,17.41189772,176.27,176.23,1.41971002]
[1730145208862,23.08459772,176.28,176.24,1.41971002]
[1730145209064,5.6727,176.28,176.25,1.41971002]
[1730145209446,23.08459772,176.28,176.24,1.41971002]
[1730145209648,17.41189772,176.27,176.25,1.41971002]
[1730145209969,17.41189772,176.27,176.23,1.41971002]
[1730145210153,5.6734,176.26,176.24,1.41971002]
[1730145210460,5.6734,176.26,176.25,1.41971002]
[1730145210667,5.6734,176.26,176.23,1.41971002]
[1730145210853,5.6734,176.26,176.24,1.41971002]
[1730145211051,5.6734,176.26,176.21,18.00827982]
[1730145211255,5.6734,176.26,176.25,1.41970705]
[1730145211459,23.08529772,176.26,176.22,1.41970705]
[1730145211764,23.776884,176.25,176.23,1.41970705]
[1730145211944,17.41189772,176.24,176.22,1.41970705]
[1730145212141,5.6744,176.23,176.22,1.41970705]
[1730145212366,5.6744,176.23,176.22,1.41987603]
[1730145212561,5.6744,176.23,176.21,0.5963821]
[1730145214755,46.86268172,176.25,176.21,0.5963821]
[1730145215853,23.08579772,176.25,176.21,0.5963821]
[1730145217446,17.41189772,176.24,176.21,0.5963821]
[1730145218348,5.6744,176.23,176.21,0.5963821]
[1730145218851,17.41189772,176.25,176.21,0.5963821]
[1730145219059,17.41189772,176.27,176.21,18.00827982]
[1730145219362,17.41189772,176.26,176.21,0.5963821]
[1730145220358,5.6737,176.25,176.21,0.5963821]
[1730145221875,23.08559772,176.25,176.21,0.5963821]
[1730145223347,17.41189772,176.24,176.21,0.5963821]
[1730145224467,5.6744,176.23,176.21,0.5963821]
[1730145225471,5.6731,176.27,176.22,17.41189772]
[1730145226068,17.41189772,176.25,176.21,0.5963821]
[1730145226767,11.14100774,176.25,176.21,0.5963821]
[1730145228449,5.674,176.24,176.21,0.5963821]
[1730145229454,11.14100774,176.26,176.21,0.5963821]
[1730145229760,16.81460774,176.26,176.21,0.5963821]
[1730145232364,11.14100774,176.25,176.21,0.5963821]
[1730145232853,5.6705,176.35,176.24,11.14100774]
[1730145233048,11.14100774,176.33,176.27,11.14100774]
[1730145233877,5.6715,176.32,176.27,11.14100774]
[1730145234075,5.6715,176.32,176.26,11.14100774]
[1730145235862,5.6715,176.32,176.27,11.14100774]
[1730145236653,6.77771514,176.4,176.29,11.14100774]
[1730145236854,91.29428227,176.43,176.36,11.14100774]
[1730145237056,11.14100774,176.42,176.36,11.14100774]
[1730145237368,16.80960774,176.41,176.35,11.14100774]
[1730145237879,16.80960774,176.41,176.34,11.14100774]
[1730145238060,11.14100774,176.4,176.33,11.14100774]
[1730145238266,5.6686,176.41,176.33,11.14100774]
[1730145238478,5.6686,176.41,176.32,11.14100774]
[1730145238660,11.14100774,176.38,176.29,21.6975]
[1730145238973,11.14100774,176.36,176.3,11.14100774]
[1730145239866,16.81120774,176.36,176.3,11.14100774]
[1730145240374,11.14100774,176.33,176.24,22.8193]
[1730145240700,17.3914247,176.33,176.27,17.3914247]
[1730145240850,17.3914247,176.34,176.28,17.3914247]
[1730145241174,17.3914247,176.34,176.27,17.3914247]
[1730145241395,5.6702,176.36,176.27,17.3914247]
[1730145241396,23.0626247,176.33,176.27,17.3914247]
[1730145241680,17.3914247,176.32,176.26,17.3914247]
[1730145241867,17.3914247,176.31,176.25,17.3914247]
[1730145242087,17.3914247,176.3,176.24,17.3914247]
[1730145242884,17.3914247,176.31,176.25,17.3914247]
[1730145243253,23.0635247,176.31,176.25,17.3914247]
[1730145243559,5.6721,176.31,176.26,17.3914247]
[1730145246076,23.0635247,176.31,176.25,17.3914247]
[1730145246453,5.6721,176.31,176.27,17.3914247]
[1730145246661,5.6705,176.35,176.28,17.3914247]
[1730145246860,5.6705,176.35,176.3,17.3914247]
[1730145247173,5.6705,176.35,176.22,17.4914247]
[1730145247174,17.3914247,176.34,176.28,17.3914247]
[1730145248261,5.6711,176.33,176.28,17.3914247]
[1730145248667,5.6711,176.33,176.29,17.3914247]
[1730145248882,20.0,176.35,176.3,17.3914247]
[1730145249065,23.0616247,176.36,176.3,17.3914247]
[1730145250488,17.3914247,176.35,176.29,17.3914247]
[1730145250781,23.0616247,176.36,176.3,17.3914247]
[1730145251078,17.3914247,176.35,176.29,17.3914247]
[1730145251479,17.3914247,176.34,176.28,17.3914247]
[1730145252058,17.3914247,176.32,176.26,17.3914247]
[1730145253061,17.3914247,176.33,176.27,17.3914247]
[1730145253270,5.6715,176.32,176.27,17.3914247]
[1730145255079,5.6715,176.32,176.21,0.6963821]
[1730145255378,5.6715,176.32,176.27,17.3914247]
[1730145255781,5.6715,176.32,176.29,17.3914247]
[1730145255966,5.6715,176.32,176.3,17.3914247]
[1730145256467,20.0,176.34,176.29,17.3914247]
[1730145256673,5.6705,176.35,176.3,17.3914247]
[1730145257082,5.6705,176.35,176.31,17.3914247]
[1730145257869,5.6702,176.36,176.32,17.3914247]
[1730145258064,5.6702,176.36,176.31,17.3914247]
[1730145258490,5.6702,176.36,176.32,17.3914247]
[1730145259893,23.0616247,176.36,176.3,17.3914247]
[1730145260493,20.7523,176.37,176.33,11.12400726]
[1730145261067,5.6699,176.37,176.33,11.12400726]
[1730145261272,5.6695,176.38,176.33,11.12400726]
[1730145261471,5.6695,176.38,176.34,11.12400726]
[1730145261693,5.6689,176.4,176.36,11.12400726]
[1730145262291,5.6689,176.4,176.29,6.1442]
[1730145262292,5.6689,176.4,176.29,6.2442]
[1730145262499,16.79290726,176.4,176.3,20.0]
[1730145262793,5.6689,176.4,176.34,11.12400726]
[1730145262993,11.12400726,176.38,176.32,11.12400726]
[1730145263198,11.12400726,176.39,176.33,11.12400726]
[1730145263493,5.6695,176.38,176.33,11.12400726]
[1730145264204,5.6695,176.38,176.3,20.0]
[1730145264205,5.6695,176.38,176.34,11.12400726]
[1730145265194,11.12400726,176.4,176.34,11.12400726]
[1730145265402,5.6692,176.39,176.34,11.12400726]
[1730145266575,29.3365,176.41,176.34,11.12400726]
[1730145266778,16.79290726,176.4,176.34,11.12400726]
[1730145267186,16.79290726,176.4,176.33,11.12400726]
[1730145267791,5.6689,176.4,176.33,11.12400726]
[1730145268110,16.79290726,176.4,176.34,11.12400726]
[1730145269600,17.04,176.45,176.37,11.12400726]
[1730145269601,20.0,176.44,176.37,11.12400726]
[1730145269801,15.5288,176.46,176.41,11.12400726]
[1730145270001,16.79000726,176.49,176.43,11.12400726]
[1730145270187,86.79000726,176.49,176.43,11.12400726]
[1730145270392,11.12400726,176.48,176.42,11.12400726]
[1730145270906,11.12400726,176.48,176.43,0.22041849]
[1730145271112,11.12400726,176.48,176.42,11.12400726]
[1730145271612,5.6666,176.47,176.42,11.12400726]
[1730145274203,5.6666,176.47,176.43,11.12400726]
[1730145274793,5.6666,176.47,176.42,11.12400726]
[1730145275601,11.12400726,176.43,176.37,11.12400726]
[1730145276002,20.0,176.46,176.38,11.12400726]
[1730145276206,11.12400726,176.45,176.39,11.12400726]
[1730145276784,20.0,176.46,176.4,12.5428284]
[1730145277007,5.6673,176.45,176.4,11.12400726]
[1730145277183,5.6673,176.45,176.41,1.41879562]
[1730145277389,5.6673,176.45,176.42,1.41879562]
[1730145277592,5.6673,176.45,176.41,11.12400726]
[1730145277795,5.6673,176.45,176.42,1.4186761]
[1730145278100,5.6673,176.45,176.41,11.12400726]
[1730145278303,5.667,176.46,176.42,1.41864056]
[1730145278609,5.667,176.46,176.41,17.36449571]
[1730145278802,5.667,176.46,176.42,1.41866417]
[1730145279013,5.667,176.46,176.41,17.36449571]
[1730145279193,5.667,176.46,176.42,1.41863151]
[1730145279395,5.667,176.46,176.41,17.36449571]
[1730145279604,5.667,176.46,176.42,1.41863138]
[1730145279793,23.03149571,176.46,176.4,17.36449571]
[1730145280109,17.36449571,176.44,176.41,1.41870245]
[1730145280308,17.36449571,176.42,176.35,17.36449571]
[1730145280513,17.36449571,176.43,176.37,17.36449571]
[1730145280804,32.51199571,176.44,176.38,18.78333113]
[1730145281012,32.51199571,176.44,176.38,17.36449571]
[1730145281208,32.51199571,176.44,176.37,17.36449571]
[1730145281415,17.36449571,176.43,176.38,1.41885376]
[1730145281708,5.6682,176.42,176.37,17.36449571]
[1730145281899,20.8154,176.44,176.39,17.36449571]
[1730145282095,38.17989571,176.44,176.38,1.41886026]
[1730145282398,17.36449571,176.43,176.37,17.36449571]
[1730145282604,38.17989571,176.44,176.37,17.36449571]
[1730145283608,38.17989571,176.44,176.38,18.78334381]
[1730145283818,38.17989571,176.44,176.38,17.36449571]
[1730145283994,17.36449571,176.42,176.36,17.36449571]
[1730145284188,17.36449571,176.42,176.37,1.41883719]
[1730145284406,17.36449571,176.42,176.36,17.36449571]
[1730145284607,17.36449571,176.42,176.37,1.41883716]
[1730145284808,17.36449571,176.42,176.36,17.36449571]
[1730145285111,5.6686,176.41,176.37,1.41887229]
[1730145285297,5.6686,176.41,176.36,17.36449571]
[1730145285987,5.6686,176.41,176.35,17.36449571]
[1730145286194,5.6686,176.41,176.36,1.41887242]
[1730145286416,5.6686,176.41,176.35,17.36449571]
[1730145286618,5.6686,176.41,176.36,1.41887732]
[1730145286915,5.6686,176.41,176.35,17.36449571]
[1730145287213,5.6686,176.41,176.36,1.41887732]
[1730145287418,5.6686,176.41,176.35,17.36449571]
[1730145287608,5.6686,176.41,176.36,1.41887845]
[1730145287914,5.6686,176.41,176.35,17.36449571]
[1730145288094,5.6686,176.41,176.36,1.41887255]
[1730145288297,5.6686,176.41,176.35,17.36449571]
[1730145288491,5.6686,176.41,176.36,1.41887242]
[1730145288716,5.6686,176.41,176.37,1.41887242]
[1730145288904,5.6686,176.41,176.36,17.36449571]
[1730145289210,17.36449571,176.43,176.32,15.8194]
[1730145289211,5.6682,176.43,176.39,17.36449571]
[1730145289893,5.6682,176.43,176.4,17.36449571]
[1730145290094,5.6682,176.43,176.34,2.2700268]
[1730145290095,5.667,176.46,176.41,17.36449571]
[1730145290398,5.667,176.46,176.4,17.36449571]
[1730145291715,23.03149571,176.46,176.4,17.36449571]
[1730145292819,23.03149571,176.46,176.39,17.36449571]
[1730145295305,5.667,176.46,176.41,17.36449571]
[1730145295502,5.667,176.46,176.42,17.36449571]
[1730145295902,5.667,176.46,176.41,17.36449571]
[1730145297603,5.667,176.46,176.4,17.36449571]
[1730145298518,5.667,176.46,176.41,11.11255798]
[1730145298721,11.11255798,176.5,176.43,11.11255798]
[1730145298909,20.0,176.49,176.43,11.11255798]
[1730145299298,31.11255798,176.49,176.43,11.11255798]
[1730145299599,11.11255798,176.48,176.42,11.11255798]
[1730145300196,16.77915798,176.47,176.41,11.11255798]
[1730145300398,11.11255798,176.42,176.39,2.26967977]
[1730145300711,43.776884,176.43,176.38,2.26967977]
[1730145301018,11.11255798,176.4,176.35,2.26967977]
[1730145301326,43.776884,176.43,176.36,3.68855712]
[1730145301514,11.11255798,176.39,176.37,1.41887735]
[1730145301826,43.776884,176.43,176.34,13.38223775]
[1730145302010,43.776884,176.43,176.29,22.8873]
[1730145302011,11.11255798,176.41,176.35,14.80122328]
[1730145302213,11.11255798,176.41,176.36,1.41898553]
[1730145302523,5.6689,176.4,176.37,1.41897101]
[1730145302699,5.6689,176.4,176.38,1.4187993]
[1730145302900,14.169,176.45,176.31,44.45023192]
[1730145302901,5.6673,176.45,176.39,11.11255798]
[1730145303107,5.6673,176.45,176.4,11.11255798]
[1730145303315,11.11255798,176.44,176.38,11.11255798]
[1730145303515,11.11255798,176.44,176.39,1.41876017]
[1730145303822,11.11255798,176.44,176.38,11.11255798]
[1730145304025,11.11255798,176.41,176.39,1.41876799]
[1730145304216,11.11255798,176.4,176.36,1.41893738]
[1730145304421,11.11255798,176.4,176.34,11.11255798]
[1730145304614,11.11255798,176.4,176.35,1.41893814]
[1730145304800,11.11255798,176.39,176.36,1.41893814]
[1730145305004,11.11255798,176.39,176.33,11.11255798]
[1730145305312,11.11255798,176.4,176.34,12.53154961]
[1730145305507,11.11255798,176.4,176.35,1.41899163]
[1730145305712,11.11255798,176.4,176.36,1.41899163]
[1730145305915,11.11255798,176.4,176.37,1.41899163]
[1730145306224,16.78175798,176.39,176.33,11.11255798]
[1730145306602,16.78175798,176.39,176.34,1.41898583]
[1730145306818,16.78175798,176.39,176.35,1.41898583]
[1730145307020,11.11255798,176.37,176.36,1.41898583]
[1730145307337,11.11255798,176.37,176.28,11.11255798]
[1730145307624,26.45535798,176.38,176.32,11.11255798]
[1730145307824,5.6692,176.39,176.27,15.2945]
[1730145307825,5.6692,176.39,176.33,1.4191904]
[1730145308120,11.11255798,176.41,176.33,1.4191904]
[1730145308329,11.11255798,176.4,176.34,11.11255798]
[1730145308813,11.11255798,176.4,176.34,12.53174838]
[1730145309012,11.11255798,176.4,176.35,1.4191904]
[1730145309324,11.11255798,176.4,176.34,11.11255798]
[1730145309533,5.6692,176.39,176.34,11.11255798]
[1730145309928,11.11255798,176.4,176.34,11.11255798]
[1730145310630,16.78145798,176.4,176.34,11.11255798]
[1730145312533,21.0113,176.42,176.34,11.11255798]
[1730145312829,11.11255798,176.4,176.34,11.11255798]
[1730145313433,11.11255798,176.38,176.32,11.11255798]
[1730145314806,11.11255798,176.39,176.33,11.11255798]
[1730145315011,11.11255798,176.4,176.34,11.11255798]
[1730145315213,11.11255798,176.39,176.33,11.11255798]
[1730145316921,16.78155798,176.4,176.33,11.11255798]
[1730145317934,11.11255798,176.38,176.32,11.11255798]
[1730145318304,11.11255798,176.38,176.29,20.0]
[1730145318305,11.11255798,176.39,176.33,11.11255798]
[1730145318720,26.45535798,176.42,176.35,11.11255798]
[1730145318923,26.45535798,176.42,176.36,11.11255798]
[1730145319430,32.12365798,176.42,176.36,11.11255798]
[1730145319836,32.12365798,176.42,176.35,11.11255798]
[1730145320016,11.11255798,176.41,176.35,11.11255798]
[1730145322812,11.11255798,176.39,176.33,11.11255798]
[1730145323040,11.11255798,176.36,176.27,21.1964818]
[1730145323218,11.11255798,176.36,176.3,11.11255798]
[1730145323727,11.11255798,176.37,176.31,11.11255798]
[1730145323933,23.776884,176.4,176.3,11.11255798]
[1730145323934,11.11255798,176.36,176.3,11.11255798]
[1730145324453,11.11255798,176.37,176.31,11.11255798]
[1730145324817,5.6696,176.38,176.33,11.11255798]
[1730145325653,16.78215798,176.38,176.32,11.11255798]
[1730145325943,11.11255798,176.37,176.27,21.1964818]
[1730145326233,16.78215798,176.38,176.32,11.11255798]
[1730145326925,5.6696,176.38,176.33,11.11255798]
[1730145327314,16.78215798,176.38,176.32,11.11255798]
[1730145327723,16.78185798,176.39,176.33,11.11255798]
[1730145329239,11.11255798,176.36,176.27,21.1964818]
[1730145329440,11.11255798,176.37,176.31,11.11255798]
[1730145329621,11.11255798,176.38,176.32,11.11255798]
[1730145330237,5.6693,176.39,176.34,11.11255798]
[1730145330535,11.11255798,176.4,176.34,11.11255798]
[1730145330842,16.78115798,176.41,176.35,11.11255798]
[1730145331749,11.11255798,176.4,176.34,11.11255798]
[1730145333247,11.11255798,176.41,176.35,11.11255798]
[1730145334346,32.12385798,176.42,176.36,11.11255798]
[1730145335640,11.11255798,176.41,176.35,11.11255798]
[1730145335832,11.11255798,176.39,176.33,11.11255798]
[1730145336525,11.11255798,176.38,176.32,11.11255798]
[1730145336927,11.11255798,176.33,176.27,21.1964818]
[1730145337144,11.11255798,176.32,176.27,17.01453978]
[1730145337345,11.11255798,176.32,176.26,11.11255798]
[1730145337552,11.11255798,176.3,176.24,11.11255798]
[1730145338548,11.11255798,176.29,176.23,11.11255798]
[1730145338929,11.11255798,176.28,176.22,11.11255798]
[1730145339454,11.11255798,176.29,176.23,11.11255798]
[1730145340330,11.11255798,176.29,176.21,0.5963821]
[1730145340331,11.11255798,176.26,176.21,0.5963821]
[1730145340530,11.11255798,176.27,176.21,11.70894008]
[1730145341542,11.11255798,176.29,176.23,11.11255798]
[1730145341747,11.11255798,176.28,176.23,11.11255798]
[1730145342557,16.78535798,176.28,176.23,11.11255798]
[1730145343744,16.78535798,176.28,176.22,11.11255798]
[1730145345450,20.0,176.29,176.24,11.11255798]
[1730145345834,36.78495798,176.29,176.23,11.11255798]
[1730145347733,36.78495798,176.29,176.21,0.5963821]
[1730145347934,36.78495798,176.29,176.23,11.11255798]
[1730145349047,11.11255798,176.24,176.21,0.5963821]
[1730145349245,11.11255798,176.22,176.21,0.5963821]
[1730145350361,16.78725798,176.22,176.21,0.5963821]
[1730145350561,23.08998061,176.22,176.21,0.5963821]
[1730145352435,5.6747,176.22,176.21,0.5963821]
[1730145353347,23.08998061,176.22,176.21,0.5963821]
[1730145353540,5.6747,176.22,176.21,0.5963821]
[1730145354737,23.08998061,176.22,176.21,0.5963821]
[1730145356849,136.86686461,176.22,176.21,0.5963821]
[1730145357334,153.89686461,176.22,176.21,0.5963821]
[1730145357662,136.86686461,176.22,176.21,0.5963821]
[1730145363777,25.6747,176.22,176.21,0.5963821]
[1730145364065,75.6731,176.27,176.21,0.5963821]
[1730145364273,17.41528061,176.25,176.21,0.5963821]
[1730145365490,20.0,176.24,176.21,0.5963821]
[1730145365775,25.6742,176.24,176.21,0.5963821]
[1730145366080,5.6742,176.24,176.21,0.5963821]
[1730145367785,17.41528061,176.24,176.21,0.5963821]
[1730145368074,17.41528061,176.22,176.21,0.5963821]
[1730145368750,17.41528061,176.24,176.21,0.5963821]
[1730145369064,20.0,176.24,176.21,0.5963821]
[1730145369468,37.41528061,176.24,176.21,0.5963821]
[1730145369780,20.0,176.25,176.21,0.5963821]
[1730145369967,20.0,176.26,176.21,18.01166271]
[1730145370564,11.1392223,176.25,176.21,0.5963821]
[1730145370762,20.0,176.24,176.21,0.5963821]
[1730145371579,31.1392223,176.24,176.21,0.5963821]
[1730145371888,16.8137223,176.23,176.21,0.5963821]
[1730145372577,5.6745,176.23,176.21,0.5963821]
[1730145374975,16.8137223,176.23,176.21,0.5963821]
[1730145375179,31.1392223,176.22,176.21,0.5963821]
[1730145376293,60.5908063,176.22,176.21,0.5963821]
[1730145377790,130.5908063,176.22,176.21,0.5963821]
[1730145378194,146.8917063,176.22,176.21,0.5963821]
[1730145378794,135.752484,176.22,176.21,0.5963821]
[1730145378971,76.8917063,176.22,176.21,0.5963821]
[1730145379802,41.9756,176.22,176.21,0.5963821]
[1730145379978,21.74452875,176.27,176.21,0.5963821]
[1730145380177,16.8123223,176.27,176.21,11.7356044]
[1730145380470,5.6724,176.29,176.22,11.1392223]
[1730145380687,11.1392223,176.28,176.22,11.1392223]
[1730145381204,11.1392223,176.24,176.21,0.5963821]
[1730145381377,11.1392223,176.23,176.21,0.5963821]
[1730145381573,11.1392223,176.22,176.21,0.5963821]
[1730145382784,11.1392223,176.23,176.21,0.5963821]
[1730145385196,5.6747,176.22,176.21,0.5963821]
[1730145385506,36.8139223,176.22,176.21,0.5963821]
[1730145385676,130.5908063,176.22,176.21,0.5963821]
[1730145388607,175.1476955,176.22,176.21,0.5963821]
[1730145388905,106.8139223,176.22,176.21,0.5963821]
[1730145390496,130.5908063,176.22,176.21,0.5963821]
[1730145392700,147.6208063,176.22,176.21,0.5963821]
[1730145393005,130.5908063,176.22,176.21,0.5963821]
[1730145393387,16.8139223,176.22,176.21,0.5963821]
[1730145394794,36.8139223,176.22,176.21,0.5963821]
[1730145395321,60.5908063,176.22,176.21,0.5963821]
[1730145399214,130.5908063,176.22,176.21,0.5963821]
[1730145399410,175.1476955,176.22,176.21,0.5963821]
[1730145400408,119.451584,176.22,176.21,0.5963821]
[1730145400613,130.5908063,176.22,176.21,0.5963821]
[1730145401115,192.1776955,176.22,176.21,0.5963821]
[1730145402310,192.3776955,176.22,176.21,0.5963821]
[1730145402823,136.581584,176.22,176.21,0.5963821]
[1730145403012,192.2776955,176.22,176.21,0.5963821]
[1730145406415,175.1476955,176.22,176.21,0.5963821]
[1730145406607,130.5908063,176.22,176.21,0.5963821]
[1730145406997,119.451584,176.22,176.21,0.5963821]
[1730145407315,106.8139223,176.22,176.21,0.5963821]
[1730145407501,25.6747,176.22,176.21,0.5963821]
[1730145407704,16.8139223,176.22,176.21,0.5963821]
[1730145409003,36.8139223,176.22,176.21,0.5963821]
[1730145410113,130.5908063,176.22,176.21,0.5963821]
[1730145411721,25.6747,176.22,176.21,0.5963821]
[1730145411931,36.8139223,176.22,176.21,0.5963821]
[1730145412128,81.3708115,176.22,176.21,0.5963821]
[1730145412306,130.5908063,176.22,176.21,0.5963821]
[1730145414903,175.1476955,176.22,176.21,0.5963821]
[1730145415921,175.1476955,176.22,176.21,8.21e-05]
[1730145415922,192.1776955,176.22,176.21,8.21e-05]
[1730145417714,175.1476955,176.22,176.21,8.21e-05]
[1730145419014,119.451584,176.22,176.21,8.21e-05]
[1730145419513,175.1476955,176.22,176.21,8.21e-05]
[1730145420440,192.2776955,176.22,176.21,8.21e-05]
[1730145420817,192.1776955,176.22,176.21,8.21e-05]
[1730145421023,192.2776955,176.22,176.21,8.21e-05]
[1730145421223,192.2776955,176.22,176.12,6.3386]
[1730145421224,70.0,176.18,176.12,6.3386]
[1730145421427,11.1392223,176.13,176.1,15.1259]
[1730145421621,11.1392223,176.11,176.07,6.3386]
[1730145421830,11.1392223,176.12,176.07,6.3386]
[1730145423235,5.6782,176.11,176.07,6.3386]
[1730145423441,11.1392223,176.1,176.07,6.3386]
[1730145424739,16.8178223,176.1,176.07,6.3386]
[1730145425239,11.1392223,176.09,176.07,6.3386]
[1730145425436,11.1392223,176.08,176.06,16.3172]
[1730145426140,11.1392223,176.08,176.05,0.4]
[1730145426350,20.0,176.12,176.05,0.4]
[1730145426637,11.1392223,176.1,176.05,0.4]
[1730145427425,16.8178223,176.1,176.05,11.5392223]
[1730145427740,11.1392223,176.08,176.05,0.4]
[1730145429333,11.1392223,176.07,176.05,0.4]